bitfinex/quotes_BTCUSD_20251015
["timestamp","ask_amount","ask_price","bid_price","bid_amount"]
[1760527077148,6.0416547,112190.0,112180.0,0.10745869]
[1760527077362,6.13133678,112190.0,112180.0,0.10745869]
[1760527077591,1.05077667,112190.0,112180.0,0.10745869]
[1760527078470,1.06728193,112190.0,112180.0,0.10745869]
[1760527079100,0.4087638,112190.0,112180.0,0.10745869]
[1760527079310,0.36523003,112190.0,112180.0,0.22493869]
[1760527079518,0.79491758,112190.0,112180.0,0.22493869]
[1760527079733,0.38422571,112190.0,112180.0,0.22493869]
[1760527079952,0.79491758,112190.0,112180.0,0.2002444]
[1760527080169,5.34,112180.0,112160.0,0.10603678]
[1760527080394,6.2694179,112170.0,112160.0,0.07925632]
[1760527080606,0.74,112160.0,112150.0,0.09714907]
[1760527080818,6.32637845,112160.0,112150.0,0.05300811]
[1760527081056,6.3462569,112160.0,112150.0,0.00166742]
[1760527081273,6.77594445,112160.0,112150.0,0.00166742]
[1760527081498,6.5993751,112140.0,112130.0,0.1815145]
[1760527081718,6.71322945,112140.0,112130.0,0.08298194]
[1760527081899,6.79815068,112140.0,112130.0,0.05968007]
[1760527082146,6.81213493,112140.0,112130.0,0.00611915]
[1760527082395,6.78225319,112140.0,112130.0,0.00611915]
[1760527082824,5.95306267,112140.0,112130.0,0.00611915]
[1760527083260,6.3165348,112140.0,112130.0,0.00611915]
[1760527083465,5.9067257,112140.0,112130.0,0.00611915]
[1760527083683,5.8630897,112140.0,112130.0,0.00611915]
[1760527083902,5.499357,112140.0,112130.0,0.00611915]
[1760527084119,0.0516881,112140.0,112130.0,0.00611915]
[1760527084333,0.00049703,112140.0,112130.0,0.00611915]
[1760527084776,0.00149703,112140.0,112130.0,0.00611915]
[1760527085429,0.02638479,112140.0,112130.0,0.00611915]
[1760527085642,0.02638479,112140.0,112130.0,0.43691895]
[1760527085848,0.00149703,112140.0,112130.0,0.50248312]
[1760527086051,0.00149703,112140.0,112130.0,0.07279557]
[1760527086276,0.00149703,112140.0,112130.0,0.43675004]
[1760527086484,0.00149703,112140.0,112130.0,0.4358067]
[1760527086895,0.00049703,112140.0,112130.0,0.4358067]
[1760527087751,0.00049703,112140.0,112130.0,0.00611915]
[1760527087973,0.00049703,112140.0,112130.0,0.55540015]
[1760527088181,0.00049703,112140.0,112130.0,0.62044724]
[1760527088414,0.00049703,112140.0,112130.0,0.19075969]
[1760527088617,0.00049703,112140.0,112130.0,0.58990898]
[1760527088835,0.00049703,112140.0,112130.0,0.00611915]
[1760527089269,0.00049703,112140.0,112130.0,0.12439915]
[1760527090568,0.00049703,112140.0,112130.0,0.12497891]
[1760527090774,0.00049703,112140.0,112130.0,0.00669891]
[1760527091003,0.00049703,112140.0,112130.0,0.12509891]
[1760527091216,0.00049703,112140.0,112130.0,0.14878932]
[1760527091487,0.00049703,112140.0,112130.0,0.61407939]
[1760527092534,0.00049703,112140.0,112130.0,0.00611915]
[1760527092751,0.00049703,112140.0,112130.0,0.5542467]
[1760527093161,0.00049703,112140.0,112130.0,0.12455915]
[1760527093368,0.00049703,112140.0,112130.0,0.5542467]
[1760527093993,0.00049703,112140.0,112130.0,0.12455915]
[1760527094219,0.00049703,112140.0,112130.0,0.19136457]
[1760527094430,0.00049703,112140.0,112130.0,0.19116434]
[1760527094645,0.00049703,112140.0,112130.0,0.00611915]
[1760527094888,0.00049703,112140.0,112130.0,0.12487915]
[1760527095120,5.79247814,112140.0,112130.0,0.00611915]
[1760527095332,0.36551496,112140.0,112130.0,0.12487915]
[1760527095534,5.83175401,112140.0,112130.0,0.12487915]
[1760527095747,5.83175401,112140.0,112130.0,0.12587915]
[1760527096559,5.38939408,112140.0,112130.0,0.12487915]
[1760527096787,0.34049703,112140.0,112130.0,0.12487915]
[1760527098443,0.00049703,112140.0,112130.0,0.5550954]
[1760527098651,0.43018458,112140.0,112130.0,0.00611915]
[1760527098862,0.43018458,112140.0,112130.0,0.12487915]
[1760527099283,0.00049703,112140.0,112130.0,0.12487915]
[1760527099489,0.02279059,112140.0,112130.0,0.12487915]
[1760527100518,0.02279059,112140.0,112130.0,0.12507915]
[1760527100726,0.45247814,112140.0,112130.0,0.00611915]
[1760527100831,0.00049703,112140.0,112130.0,0.12507915]
[1760527101862,0.45247814,112140.0,112130.0,0.12499915]
[1760527102129,0.49726333,112140.0,112130.0,0.12499915]
[1760527102560,0.81543239,112140.0,112130.0,0.00611915]
[1760527102685,5.83441262,112140.0,112130.0,0.00611915]
[1760527102887,5.85624356,112140.0,112130.0,0.12495915]
[1760527103487,5.85787818,112140.0,112130.0,0.12495915]
[1760527103682,5.88012677,112140.0,112130.0,0.12495915]
[1760527103970,5.85787818,112140.0,112130.0,0.00611915]
[1760527104261,5.45082587,112140.0,112130.0,0.00611915]
[1760527104463,5.91217104,112140.0,112130.0,0.00611915]
[1760527104694,5.86692323,112140.0,112130.0,0.00611915]
[1760527104879,5.83526561,112140.0,112130.0,0.00611915]
[1760527105486,6.29661078,112140.0,112130.0,0.00611915]
[1760527105691,6.36699045,112140.0,112130.0,0.00611915]
[1760527105919,0.34,112130.0,112120.0,0.11180521]
[1760527106158,6.30874067,112130.0,112120.0,0.11180521]
[1760527106363,6.3562041,112130.0,112120.0,0.11180521]
[1760527106725,6.33577127,112130.0,112120.0,0.11180521]
[1760527106941,6.34400625,112130.0,112120.0,0.0727743]
[1760527107146,6.5279503,112130.0,112120.0,0.0459721]
[1760527107352,6.55955279,112130.0,112120.0,0.0191699]
[1760527107554,6.51212029,112130.0,112120.0,0.0191699]
[1760527107896,6.52758881,112130.0,112120.0,0.0191699]
[1760527108026,6.52858881,112130.0,112120.0,0.0191699]
[1760527108226,6.51097211,112130.0,112120.0,0.0191699]
[1760527108433,6.27352483,112130.0,112120.0,0.0191699]
[1760527109055,5.41514973,112130.0,112120.0,0.0191699]
[1760527109272,6.27452483,112130.0,112120.0,0.0191699]
[1760527110904,6.5993751,112100.0,112090.0,0.18383456]
[1760527111127,6.61835533,112100.0,112090.0,0.18383456]
[1760527111431,6.61835533,112100.0,112090.0,0.11208246]
[1760527111636,6.65846814,112100.0,112090.0,0.08760077]
[1760527111836,6.70780979,112100.0,112090.0,0.06079857]
[1760527112019,6.71294315,112100.0,112090.0,0.01357296]
[1760527112252,0.57744728,112090.0,112080.0,0.09081144]
[1760527112449,6.51188401,112090.0,112080.0,0.06400924]
[1760527112777,6.51188401,112090.0,112080.0,0.03720704]
[1760527112976,6.51188401,112090.0,112080.0,0.01039612]
[1760527113201,5.74,112080.0,112070.0,0.11977645]
[1760527113430,6.66728911,112080.0,112070.0,0.11977645]
[1760527113630,6.69287941,112080.0,112070.0,0.11977645]
[1760527114957,6.66693395,112080.0,112070.0,0.11977645]
[1760527115176,6.65050504,112080.0,112070.0,0.11977645]
[1760527115382,6.66687045,112080.0,112070.0,0.11977645]
[1760527115600,6.2268973,112080.0,112070.0,0.11977645]
[1760527115813,6.2288973,112080.0,112070.0,0.11977645]
[1760527116272,5.01054197,112080.0,112070.0,0.11977645]
[1760527116518,0.00854197,112080.0,112070.0,0.11977645]
[1760527116720,0.46253501,112080.0,112070.0,0.11977645]
[1760527117003,5.44022952,112080.0,112070.0,0.11977645]
[1760527117216,5.43822952,112080.0,112070.0,0.11977645]
[1760527117433,6.09682238,112080.0,112070.0,0.04442645]
[1760527117664,6.21822416,112080.0,112070.0,0.04442645]
[1760527117886,6.24079695,112080.0,112070.0,0.04442645]
[1760527118101,6.33440695,112080.0,112070.0,0.04442645]
[1760527118322,6.24079695,112080.0,112070.0,0.04558712]
[1760527119164,6.25479035,112080.0,112070.0,0.04558712]
[1760527120031,5.39541525,112080.0,112070.0,0.04558712]
[1760527120199,6.25679035,112080.0,112070.0,0.04558712]
[1760527120638,5.37856619,112080.0,112070.0,0.04558712]
[1760527120814,6.23794129,112080.0,112070.0,0.04558712]
[1760527121017,6.23594129,112080.0,112070.0,0.04558712]
[1760527121243,6.26258781,112080.0,112070.0,0.04558712]
[1760527121578,5.88194789,112080.0,112070.0,0.04558712]
[1760527121710,0.42968755,112060.0,112050.0,0.08754238]
[1760527121923,6.1993751,112060.0,112050.0,0.08754238]
[1760527122129,5.358836,112060.0,112050.0,0.07354905]
[1760527122366,6.2182111,112060.0,112050.0,0.07354905]
[1760527122579,6.24426983,112060.0,112050.0,0.07354905]
[1760527122970,6.24476625,112060.0,112050.0,0.07354905]
[1760527123239,6.24476666,112060.0,112050.0,0.07354905]
[1760527123438,6.28566135,112060.0,112050.0,0.02008426]
[1760527123642,5.97744728,112050.0,112040.0,0.1237088]
[1760527123849,6.85565879,112050.0,112040.0,0.1237088]
[1760527124030,0.34,112040.0,112030.0,0.12546488]
[1760527124255,5.59379252,112040.0,112030.0,0.09864661]
[1760527124473,6.48175284,112040.0,112030.0,0.07182834]
[1760527124815,6.48171284,112040.0,112030.0,0.07182834]
[1760527125232,6.48171284,112040.0,112030.0,0.04501007]
[1760527125437,6.88171284,112040.0,112030.0,0.04501007]
[1760527125602,6.88171284,112040.0,112030.0,0.0181918]
[1760527125806,5.0,112030.0,112010.0,0.12762769]
[1760527126098,5.88169254,112020.0,112010.0,0.12762769]
[1760527126358,5.8593751,112020.0,112010.0,0.12762769]
[1760527126559,5.89218324,112020.0,112010.0,0.12762769]
[1760527126972,6.23218324,112020.0,112010.0,0.12762769]
[1760527127385,6.21387135,112020.0,112010.0,0.12762769]
[1760527127611,6.23267581,112020.0,112010.0,0.12762769]
[1760527127826,6.2399654,112020.0,112010.0,0.12762769]
[1760527128057,5.4451838,112020.0,112010.0,0.12762769]
[1760527128280,0.43118367,112020.0,112010.0,0.12762769]
[1760527129094,0.00149612,112020.0,112010.0,0.12762769]
[1760527129300,0.43118367,112020.0,112010.0,0.12762769]
[1760527129504,0.00149612,112020.0,112010.0,0.12762769]
[1760527129710,0.00149612,112020.0,112010.0,0.33694977]
[1760527129888,0.00049612,112020.0,112010.0,0.33694977]
[1760527130088,0.00149612,112020.0,112010.0,0.33694977]
[1760527130447,0.00149612,112020.0,112010.0,0.21730977]
[1760527130653,0.00049612,112020.0,112010.0,0.33686977]
[1760527131370,0.00049612,112020.0,112010.0,0.12762769]
[1760527131589,6.45963594,112020.0,112010.0,0.10079804]
[1760527131835,6.21873306,112020.0,112010.0,0.10079804]
[1760527132061,5.35935796,112020.0,112010.0,0.10079804]
[1760527132287,5.77018367,112020.0,112010.0,0.10079804]
[1760527132757,6.19987122,112020.0,112010.0,0.10079804]
[1760527132973,6.21873903,112020.0,112010.0,0.10428222]
[1760527133669,6.28461273,112020.0,112010.0,0.10428222]
[1760527134070,6.28561273,112020.0,112010.0,0.10428222]
[1760527134307,6.29116877,112020.0,112010.0,0.10428222]
[1760527134542,6.25866023,112020.0,112010.0,0.10428222]
[1760527134981,6.25866023,112020.0,112010.0,0.07745674]
[1760527134982,6.25966023,112020.0,112010.0,0.07745674]
[1760527135214,6.25966023,112020.0,112000.0,3.16509622]
[1760527135215,5.57744728,112010.0,112000.0,3.16509622]
[1760527135434,6.07389538,112010.0,112000.0,3.13827074]
[1760527135655,6.09984788,112010.0,112000.0,3.11144526]
[1760527135943,6.92953543,112010.0,112000.0,2.72389692]
[1760527136161,6.92163698,112010.0,112000.0,2.59278922]
[1760527136379,6.95007828,112010.0,112000.0,2.56596374]
[1760527136598,6.95007828,112010.0,112000.0,2.53913826]
[1760527136822,6.09070318,112010.0,112000.0,2.51231278]
[1760527137048,6.49802689,112010.0,112000.0,2.4854873]
[1760527137278,6.49802689,112010.0,112000.0,2.45866182]
[1760527137503,6.52162882,112010.0,112000.0,2.45866182]
[1760527137725,6.52362882,112010.0,112000.0,2.45866182]
[1760527139479,0.69973104,112010.0,112000.0,2.57894182]
[1760527139727,0.66447903,112010.0,112000.0,2.57894182]
[1760527140173,0.00049612,112020.0,112000.0,2.45866182]
[1760527140402,0.02281356,112020.0,112000.0,2.57898182]
[1760527140620,0.001,112010.0,112000.0,2.57898182]
[1760527140838,0.001,112010.0,112000.0,2.57956273]
[1760527141088,0.00049612,112020.0,112000.0,2.66924481]
[1760527142319,0.00049612,112020.0,112010.0,0.12032]
[1760527143226,0.00049612,112020.0,112010.0,0.00082844]
[1760527143610,0.00049612,112020.0,112010.0,0.1202]
[1760527143811,0.00049612,112020.0,112010.0,0.12037895]
[1760527144138,0.00049612,112020.0,112010.0,0.87254006]
[1760527144450,0.00049612,112020.0,112010.0,0.90854339]
[1760527145637,0.00049612,112020.0,112010.0,0.12586436]
[1760527145830,0.00049612,112020.0,112010.0,0.90850339]
[1760527146205,0.00049612,112020.0,112010.0,0.78834339]
[1760527146404,0.00049612,112020.0,112010.0,0.90846339]
[1760527149261,0.00049612,112020.0,112010.0,0.58598436]
[1760527149571,0.00049612,112020.0,112010.0,0.03618228]
[1760527149776,0.00049612,112020.0,112010.0,0.15626228]
[1760527149975,0.00049612,112020.0,112010.0,0.81874131]
[1760527150182,0.00049612,112020.0,112010.0,0.69866131]
[1760527150384,0.00049612,112020.0,112010.0,0.81874131]
[1760527150700,0.00049612,112020.0,112010.0,0.90842339]
[1760527151451,0.00049612,112020.0,112010.0,0.95666339]
[1760527152396,0.00049612,112020.0,112010.0,0.83662339]
[1760527152615,0.00049612,112020.0,112010.0,0.95662339]
[1760527152824,0.00049612,112020.0,112010.0,1.26631351]
[1760527153028,0.00049612,112020.0,112010.0,6.38627351]
[1760527153267,0.00049612,112020.0,112010.0,6.38723351]
[1760527153630,0.00049612,112020.0,112010.0,6.26731351]
[1760527153830,0.00049612,112020.0,112010.0,6.38623351]
[1760527154416,0.00049612,112020.0,112010.0,6.38619351]
[1760527154622,0.0717521,112080.0,112070.0,0.69866131]
[1760527154829,0.0717521,112080.0,112070.0,0.888557]
[1760527155070,0.0717521,112100.0,112080.0,0.03618228]
[1760527155266,0.00617871,112110.0,112090.0,0.12090409]
[1760527155504,0.00617871,112110.0,112070.0,0.07001569]
[1760527155797,5.0,112090.0,112070.0,0.00014956]
[1760527156012,5.0,112090.0,112080.0,0.07232]
[1760527156417,0.34617871,112110.0,112080.0,0.07959054]
[1760527156621,0.34617871,112110.0,112090.0,0.00023581]
[1760527156828,0.34617871,112110.0,112100.0,0.11984]
[1760527157038,0.34617871,112110.0,112080.0,0.00727054]
[1760527157240,0.34617871,112110.0,112090.0,0.11984]
[1760527157439,0.66865774,112110.0,112080.0,0.00766647]
[1760527157652,0.66865774,112110.0,112090.0,0.1198]
[1760527158093,0.68478054,112100.0,112070.0,0.08190166]
[1760527158301,0.66247903,112100.0,112070.0,0.08190166]
[1760527158504,0.66247903,112080.0,112070.0,0.01014956]
[1760527158709,5.0,112080.0,112070.0,0.12998956]
[1760527158925,5.66247903,112080.0,112070.0,0.01014956]
[1760527159130,0.66247903,112080.0,112070.0,0.12998956]
[1760527159542,0.66247903,112090.0,112070.0,0.12998956]
[1760527159756,0.02230549,112080.0,112070.0,0.12998956]
[1760527159908,0.66247903,112080.0,112070.0,0.12998956]
[1760527160117,0.34,112100.0,112070.0,0.12998956]
[1760527160322,5.0,112080.0,112070.0,0.12998956]
[1760527161158,0.66965774,112110.0,112070.0,0.12998956]
[1760527161364,0.02230151,112100.0,112070.0,0.12998956]
[1760527161543,0.001,112100.0,112070.0,0.12998956]
[1760527161923,0.34617871,112110.0,112070.0,0.12998956]
[1760527162127,0.00617871,112110.0,112070.0,0.08939642]
[1760527162332,0.00617871,112110.0,112080.0,0.11968]
[1760527162333,0.69095726,112110.0,112080.0,0.11968]
[1760527162608,5.0,112100.0,112090.0,0.11968]
[1760527162807,0.00617871,112110.0,112090.0,0.11968]
[1760527163001,0.00617871,112110.0,112090.0,0.78215903]
[1760527163181,0.00617871,112110.0,112070.0,0.08190166]
[1760527163182,0.00617871,112110.0,112100.0,0.11992]
[1760527163379,0.00617871,112110.0,112100.0,0.131872]
[1760527163579,0.00717871,112110.0,112100.0,0.131872]
[1760527164093,0.00617871,112110.0,112100.0,0.131872]
[1760527164326,0.00617871,112110.0,112100.0,0.83053331]
[1760527164717,0.00617871,112110.0,112100.0,0.16805428]
[1760527165086,0.00617871,112110.0,112100.0,0.0487318]
[1760527165319,0.00617871,112110.0,112100.0,0.13238952]
[1760527165487,0.00617871,112110.0,112100.0,0.83112083]
[1760527165638,0.00617871,112110.0,112100.0,0.83049331]
[1760527166917,5.66247903,112170.0,112110.0,0.03618228]
[1760527167057,5.66247903,112170.0,112120.0,0.11972]
[1760527167058,5.0,112160.0,112120.0,0.11972]
[1760527167260,5.0,112160.0,112130.0,0.11968]
[1760527167456,5.0,112170.0,112130.0,0.11968]
[1760527167689,5.0,112170.0,112140.0,0.11964]
[1760527167905,0.34,112160.0,112140.0,0.11964]
[1760527168099,0.34049673,112160.0,112140.0,0.131604]
[1760527168884,0.00049673,112160.0,112140.0,0.131604]
[1760527169096,0.00049673,112160.0,112150.0,0.00077049]
[1760527169317,0.00049673,112160.0,112150.0,0.12033049]
[1760527169521,0.00049673,112160.0,112150.0,0.00077049]
[1760527169676,0.00049673,112160.0,112150.0,0.11956]
[1760527169881,0.00049673,112160.0,112150.0,0.131516]
[1760527170099,0.00049673,112160.0,112150.0,0.11956]
[1760527170268,0.00049673,112160.0,112130.0,0.00077049]
[1760527170269,0.00049673,112160.0,112140.0,0.03618228]
[1760527170472,0.00049673,112160.0,112150.0,0.11981035]
[1760527170901,0.00049673,112160.0,112120.0,0.1199921]
[1760527171099,0.00049673,112160.0,112130.0,0.03618228]
[1760527171312,0.66297576,112160.0,112120.0,0.0717521]
[1760527171482,0.66297576,112160.0,112130.0,0.11952]
[1760527172068,0.66247903,112150.0,112140.0,0.11948]
[1760527172272,0.66247903,112150.0,112130.0,0.11948]
[1760527172482,0.66247903,112150.0,112130.0,0.00026842]
[1760527172701,5.0,112150.0,112130.0,0.00026842]
[1760527173548,0.66247903,112150.0,112130.0,0.00116001]
[1760527173744,5.0,112150.0,112130.0,0.12056001]
[1760527174010,0.66247903,112150.0,112130.0,0.00116001]
[1760527174219,0.66247903,112150.0,112130.0,0.12056001]
[1760527174427,0.00049673,112160.0,112130.0,0.12056001]
[1760527174636,0.66247903,112150.0,112130.0,0.12056001]
[1760527175552,0.66297576,112160.0,112130.0,0.12056001]
[1760527175774,0.66297576,112160.0,112130.0,0.00116001]
[1760527175978,0.6847706,112150.0,112130.0,0.11928]
[1760527176207,0.00049673,112160.0,112140.0,0.0011598]
[1760527176411,0.02278631,112160.0,112140.0,0.0011598]
[1760527176635,5.0,112150.0,112140.0,0.0011598]
[1760527177343,5.0,112150.0,112130.0,0.11928]
[1760527177344,5.34,112150.0,112130.0,0.11928]
[1760527177489,0.00049673,112160.0,112110.0,0.0717521]
[1760527177490,0.36229356,112140.0,112120.0,0.1192]
[1760527177822,0.34,112140.0,112120.0,0.1192]
[1760527178003,0.34,112140.0,112120.0,0.13829521]
[1760527178200,0.00115991,112130.0,112120.0,0.1192]
[1760527178404,0.00115991,112130.0,112110.0,0.0717521]
[1760527178605,5.0,112150.0,112120.0,0.11912]
[1760527178807,0.36229356,112140.0,112120.0,0.11912]
[1760527179007,0.34,112140.0,112120.0,0.11912]
[1760527179212,0.34,112140.0,112120.0,0.131032]
[1760527179417,0.00049673,112160.0,112120.0,0.67268159]
[1760527179621,0.00049673,112160.0,112130.0,0.11997182]
[1760527180227,0.00049673,112160.0,112130.0,0.11908]
[1760527180446,5.0,112150.0,112130.0,0.11908]
[1760527180692,5.0,112150.0,112120.0,0.11908]
[1760527180939,5.0,112150.0,112120.0,0.13816321]
[1760527181190,5.0,112150.0,112120.0,0.01908321]
[1760527181410,5.0,112150.0,112120.0,0.11908]
[1760527182021,0.34,112140.0,112120.0,0.11908]
[1760527182226,5.0,112130.0,112110.0,0.0717521]
[1760527182635,5.0,112130.0,112110.0,0.119]
[1760527183378,0.34,112140.0,112090.0,0.1199921]
[1760527183577,5.0,112120.0,112090.0,0.20271131]
[1760527183777,0.34,112120.0,112090.0,0.20271131]
[1760527184023,5.0,112110.0,112090.0,0.20271131]
[1760527184423,5.0,112110.0,112090.0,0.1907121]
[1760527184602,5.0,112110.0,112090.0,0.11896]
[1760527184823,5.0,112110.0,112090.0,0.11910956]
[1760527185185,5.0,112110.0,112090.0,0.00014956]
[1760527185385,5.36230151,112100.0,112090.0,0.00014956]
[1760527185607,5.34,112100.0,112090.0,0.00014956]
[1760527186127,0.34,112100.0,112090.0,0.00014956]
[1760527187334,0.00058,112120.0,112090.0,0.00014956]
[1760527187536,0.34,112100.0,112090.0,0.00014956]
[1760527187749,5.0,112110.0,112090.0,0.00014956]
[1760527187931,0.34058,112120.0,112090.0,0.11890956]
[1760527188133,0.34058,112120.0,112100.0,0.00101557]
[1760527188322,0.34,112110.0,112100.0,0.00101557]
[1760527189954,0.00058,112120.0,112100.0,0.00101557]
[1760527190129,0.0305369,112140.0,112100.0,0.11872]
[1760527190353,4.903931,112130.0,112110.0,0.00101538]
[1760527190764,0.34,112140.0,112110.0,0.00174899]
[1760527190875,4.92622654,112130.0,112110.0,0.00174899]
[1760527191080,4.903931,112150.0,112110.0,0.00174899]
[1760527191277,4.903931,112130.0,112110.0,0.00174899]
[1760527191506,4.903931,112150.0,112110.0,0.00174899]
[1760527191702,4.903931,112130.0,112110.0,0.00174899]
[1760527191904,4.903931,112180.0,112110.0,0.00174899]
[1760527192136,4.903931,112160.0,112110.0,0.00174899]
[1760527192319,4.687301,112140.0,112120.0,0.10452]
[1760527192509,0.34,112150.0,112130.0,0.01783643]
[1760527192717,0.34824983,112150.0,112130.0,0.01783643]
[1760527193417,0.00924983,112150.0,112100.0,0.02982972]
[1760527193601,0.001,112150.0,112120.0,0.06872]
[1760527193799,0.34149673,112150.0,112130.0,0.01783643]
[1760527194004,0.34874656,112150.0,112130.0,0.01783643]
[1760527194792,0.00874656,112150.0,112130.0,0.01783643]
[1760527195320,0.34049673,112150.0,112130.0,0.01783643]
[1760527195519,0.34874656,112150.0,112130.0,0.01783643]
[1760527195926,0.01750844,112140.0,112120.0,0.06872]
[1760527196136,4.687301,112130.0,112110.0,0.08959172]
[1760527196361,4.687301,112140.0,112110.0,0.20799172]
[1760527196562,4.69555024,112140.0,112110.0,0.21215012]
[1760527196776,4.687301,112130.0,112110.0,0.21215012]
[1760527197093,4.687301,112140.0,112110.0,0.09375012]
[1760527197393,4.687301,112130.0,112110.0,0.03983764]
[1760527197681,4.687301,112140.0,112110.0,0.03983764]
[1760527197876,4.68788093,112130.0,112110.0,0.03983764]
[1760527198056,0.00057993,112130.0,112110.0,0.03983764]
[1760527198914,0.00057993,112130.0,112110.0,0.01783962]
[1760527200682,0.00057993,112130.0,112120.0,0.1182]
[1760527200880,0.00057993,112130.0,112120.0,0.15438228]
[1760527201084,0.00057993,112130.0,112120.0,0.58462036]
[1760527201698,0.00057993,112130.0,112120.0,0.15438228]
[1760527201896,0.00057993,112130.0,112120.0,0.16982051]
[1760527202547,0.61176993,112130.0,112120.0,0.16982051]
[1760527203037,0.43339758,112130.0,112120.0,1.45998679]
[1760527203311,0.43339758,112130.0,112120.0,1.02974871]
[1760527203742,0.43339758,112130.0,112120.0,0.94005859]
[1760527204116,0.43339758,112130.0,112120.0,0.94105859]
[1760527204463,0.43339758,112130.0,112120.0,1.02974871]
[1760527204671,0.43339758,112130.0,112120.0,1.05564234]
[1760527205098,0.43339758,112130.0,112120.0,0.62640426]
[1760527205297,0.43339758,112130.0,112120.0,1.05664234]
[1760527205504,0.43339758,112130.0,112120.0,1.03074871]
[1760527205725,0.43339758,112130.0,112120.0,0.62640426]
[1760527205940,0.43339758,112130.0,112120.0,1.03074871]
[1760527206350,0.43339758,112130.0,112120.0,1.46098679]
[1760527207105,0.43339758,112130.0,112120.0,1.03074871]
[1760527207715,0.43339758,112130.0,112120.0,0.35643823]
[1760527207880,0.43339758,112130.0,112120.0,0.12373826]
[1760527208066,0.43339758,112130.0,112120.0,0.57181437]
[1760527208249,0.43339758,112130.0,112120.0,0.59015862]
[1760527209359,0.43339758,112130.0,112120.0,0.67984874]
[1760527209497,0.43339758,112130.0,112120.0,0.13061066]
[1760527209700,0.43339758,112130.0,112120.0,0.69660677]
[1760527210016,0.43339758,112130.0,112120.0,0.67976874]
[1760527210549,0.43339758,112130.0,112120.0,0.67876874]
[1760527210756,0.43339758,112130.0,112120.0,0.67968874]
[1760527210927,0.43339758,112130.0,112120.0,0.68818873]
[1760527211538,0.43339758,112130.0,112120.0,0.25795065]
[1760527211872,0.43339758,112130.0,112120.0,1.02818873]
[1760527212693,0.43339758,112130.0,112120.0,1.02810873]
[1760527213070,0.43339758,112130.0,112120.0,0.91034873]
[1760527213278,0.43339758,112130.0,112120.0,1.02806873]
[1760527213474,0.43339758,112130.0,112120.0,0.48011065]
[1760527213829,0.43339758,112130.0,112120.0,1.37682682]
[1760527214030,0.43339758,112130.0,112120.0,1.49450682]
[1760527214641,0.43339758,112130.0,112120.0,1.06422874]
[1760527215225,0.43339758,112130.0,112120.0,0.94658874]
[1760527215645,0.43339758,112130.0,112120.0,6.37682682]
[1760527215854,0.43339758,112130.0,112120.0,6.49442682]
[1760527216478,0.43339758,112130.0,112120.0,6.39463682]
[1760527216684,0.43339758,112130.0,112120.0,6.51123682]
[1760527216901,0.43339758,112130.0,112120.0,6.47505454]
[1760527217118,0.43339758,112130.0,112120.0,6.39463682]
[1760527217321,0.43339758,112130.0,112120.0,6.51219682]
[1760527217820,0.04812443,112130.0,112120.0,6.51215682]
[1760527217960,0.04812443,112130.0,112120.0,6.44283682]
[1760527218164,0.02532246,112130.0,112120.0,6.65455682]
[1760527218364,30.02532246,112130.0,112120.0,6.65455682]
[1760527218563,30.02532246,112130.0,112120.0,6.53695682]
[1760527218817,30.02532246,112130.0,112120.0,6.64601683]
[1760527219021,30.02532246,112130.0,112120.0,6.52845683]
[1760527219182,30.02532246,112130.0,112120.0,6.64601683]
[1760527219404,30.02532246,112130.0,112120.0,6.52845683]
[1760527219610,30.02532246,112130.0,112120.0,6.64597683]
[1760527219809,30.02532246,112130.0,112120.0,6.52845683]
[1760527220232,30.02532246,112130.0,112120.0,6.64593683]
[1760527220434,30.02532246,112130.0,112120.0,6.49227455]
[1760527220634,30.02532246,112130.0,112120.0,6.56285045]
[1760527220924,29.98912606,112130.0,112120.0,6.68029045]
[1760527221124,29.95730936,112130.0,112120.0,6.56285045]
[1760527221322,29.95730936,112130.0,112120.0,6.05272646]
[1760527221523,29.95730936,112130.0,112120.0,1.18797646]
[1760527221727,29.95730936,112130.0,112120.0,0.15212837]
[1760527221917,29.95730936,112130.0,112120.0,0.22457526]
[1760527222114,29.95730936,112130.0,112120.0,0.08925723]
[1760527222339,29.95730936,112130.0,112120.0,0.22457526]
[1760527222548,29.95730936,112130.0,112120.0,0.24191951]
[1760527222896,29.95730936,112130.0,112120.0,0.20573723]
[1760527223115,29.95730936,112130.0,112120.0,0.26175754]
[1760527223287,29.95730936,112130.0,112120.0,0.20773723]
[1760527223497,29.95730936,112130.0,112120.0,0.20769723]
[1760527223642,29.95730936,112130.0,112120.0,0.20565723]
[1760527223850,29.93947293,112130.0,112120.0,6.56854562]
[1760527224052,29.93947293,112130.0,112120.0,6.58835562]
[1760527224251,29.93947293,112130.0,112120.0,6.68247562]
[1760527224483,29.93947293,112130.0,112120.0,6.56507562]
[1760527224684,29.93947293,112130.0,112120.0,6.68247562]
[1760527225088,29.93947293,112130.0,112120.0,6.68251562]
[1760527225288,29.93947293,112130.0,112120.0,6.56507562]
[1760527225488,29.93947293,112130.0,112120.0,6.49706562]
[1760527225708,29.93947293,112130.0,112120.0,6.68047562]
[1760527225909,29.93947293,112130.0,112120.0,6.56507562]
[1760527226284,29.93947293,112130.0,112120.0,6.56307562]
[1760527226487,29.93947293,112130.0,112120.0,6.68043562]
[1760527226692,29.93947293,112130.0,112120.0,6.68343562]
[1760527226965,29.93947293,112130.0,112120.0,6.66566562]
[1760527227170,29.93947293,112130.0,112120.0,6.68347562]
[1760527227342,29.93947293,112130.0,112120.0,6.68343562]
[1760527228334,29.93947293,112130.0,112120.0,6.06982754]
[1760527228535,29.93947293,112130.0,112120.0,6.23534754]
[1760527228895,29.93947293,112130.0,112120.0,6.05832755]
[1760527229035,29.93947293,112130.0,112120.0,6.22684755]
[1760527229242,29.93947293,112130.0,112120.0,6.65708563]
[1760527229442,29.93947293,112130.0,112120.0,6.67489563]
[1760527229773,29.93947293,112130.0,112120.0,6.67189563]
[1760527229990,29.93947293,112130.0,112120.0,6.67389563]
[1760527230656,29.93947293,112130.0,112120.0,6.68039562]
[1760527231358,29.93947293,112130.0,112120.0,6.6625854]
[1760527232036,29.93947293,112130.0,112120.0,6.5650754]
[1760527232223,29.93947293,112130.0,112120.0,6.6823154]
[1760527232419,29.93947293,112130.0,112120.0,6.5168754]
[1760527232668,29.79855877,112130.0,112120.0,6.6803154]
[1760527232870,29.71378427,112130.0,112120.0,6.70634964]
[1760527233045,29.68226854,112130.0,112120.0,6.59110964]
[1760527233240,29.66988768,112130.0,112120.0,6.70838964]
[1760527233450,29.64727111,112130.0,112120.0,6.59110964]
[1760527233656,29.55037939,112130.0,112120.0,6.70634964]
[1760527233865,29.5447161,112130.0,112120.0,6.59210964]
[1760527234230,29.5447161,112130.0,112120.0,6.61223587]
[1760527234860,29.5447161,112130.0,112120.0,6.72943587]
[1760527235190,29.36562153,112130.0,112120.0,6.60749783]
[1760527235395,29.36562153,112130.0,112120.0,6.72469783]
[1760527235584,29.36562153,112130.0,112120.0,6.60749783]